bitfinex/quotes_BTCUSD_20250423
["timestamp","ask_amount","ask_price","bid_price","bid_amount"]
[1745423613074,0.5965493,92664.0,92663.0,0.0008484]
[1745423613578,0.5945493,92664.0,92663.0,0.0008484]
[1745423613976,0.5965493,92664.0,92663.0,0.0008484]
[1745423614335,0.65630423,92664.0,92663.0,0.0008484]
[1745423614938,0.65730423,92664.0,92663.0,0.0008484]
[1745423616070,0.64525791,92664.0,92663.0,0.0008484]
[1745423616287,0.64925791,92664.0,92663.0,0.0008484]
[1745423616485,0.65525791,92664.0,92663.0,0.0018484]
[1745423617063,0.64925791,92664.0,92663.0,0.0008484]
[1745423617265,0.65625791,92664.0,92663.0,0.0018484]
[1745423617871,0.37551604,92657.0,92651.0,0.002]
[1745423618230,0.10689014,92655.0,92651.0,0.002]
[1745423618748,0.15789014,92655.0,92651.0,0.002]
[1745423620102,0.16289014,92655.0,92651.0,0.002]
[1745423621755,0.16666905,92655.0,92651.0,0.002]
[1745423622111,0.16766905,92655.0,92651.0,0.002]
[1745423622314,0.22315756,92655.0,92651.0,0.002]
[1745423622515,0.21937865,92655.0,92651.0,0.002]
[1745423622720,0.22237865,92655.0,92651.0,0.002]
[1745423623770,0.42266764,92651.0,92625.0,0.0008484]
[1745423623979,0.10689014,92645.0,92625.0,0.0008484]
[1745423624187,0.00377904,92644.0,92625.0,0.0008484]
[1745423624392,0.10689014,92643.0,92625.0,0.0008484]
[1745423624599,0.00377906,92642.0,92625.0,0.0008484]
[1745423624814,0.1106692,92642.0,92625.0,0.0008484]
[1745423625021,0.10689014,92642.0,92625.0,0.0008484]
[1745423625658,0.10689014,92642.0,92631.0,0.342]
[1745423627404,0.10889014,92642.0,92631.0,0.342]
[1745423629656,0.48155778,92642.0,92631.0,0.342]
[1745423630355,0.48155778,92642.0,92641.0,0.0505484]
[1745423631177,0.37466764,92642.0,92641.0,0.06508925]
[1745423631897,0.37466764,92642.0,92641.0,0.06608925]
[1745423632488,0.37408333,92642.0,92641.0,0.06608925]
[1745423632617,0.37266764,92642.0,92641.0,0.52928925]
[1745423632811,0.001,92655.0,92646.0,0.01454085]
[1745423633021,0.001,92655.0,92653.0,0.35454085]
[1745423633223,0.001,92655.0,92654.0,0.56204385]
[1745423633427,0.001,92655.0,92654.0,0.44634085]
[1745423633847,0.37166764,92676.0,92662.0,0.01454085]
[1745423634058,0.10689014,92675.0,92667.0,0.40004085]
[1745423634263,0.37166764,92676.0,92669.0,0.35454085]
[1745423634749,0.37166764,92676.0,92671.0,0.01454085]
[1745423635937,0.37166764,92676.0,92675.0,0.35454085]
[1745423636147,0.08679284,92713.0,92679.0,0.0485]
[1745423636148,0.37166764,92701.0,92679.0,0.0485]
[1745423636410,0.10689014,92700.0,92691.0,0.34]
[1745423636616,0.47855778,92700.0,92693.0,0.34]
[1745423637142,0.47855778,92700.0,92694.0,0.0459]
[1745423638011,0.48055778,92700.0,92694.0,0.0459]
[1745423638366,0.47855778,92700.0,92694.0,0.0459]
[1745423639706,0.37566764,92700.0,92695.0,0.01454085]
[1745423640239,0.37166764,92700.0,92695.0,0.01454085]
[1745423640579,0.37366764,92700.0,92695.0,0.01454085]
[1745423641037,0.37166764,92700.0,92695.0,0.01454085]
[1745423641381,0.37366764,92700.0,92695.0,0.01454085]
[1745423642057,0.48055778,92700.0,92694.0,0.0459]
[1745423642359,0.11066613,92699.0,92681.0,0.0473]
[1745423642524,0.19745897,92699.0,92693.0,0.12276]
[1745423642721,0.19745897,92699.0,92688.0,0.34]
[1745423643125,0.03805853,92698.0,92688.0,0.34]
[1745423643427,0.11066661,92697.0,92688.0,0.34]
[1745423643650,0.11066661,92697.0,92682.0,0.12276]
[1745423643651,0.10689014,92695.0,92682.0,0.12276]
[1745423643838,0.10689014,92695.0,92683.0,0.34]
[1745423644851,0.10789014,92695.0,92683.0,0.34]
[1745423645059,0.10789014,92695.0,92683.0,0.341]
[1745423645207,0.00377654,92694.0,92683.0,0.341]
[1745423645408,0.10689014,92693.0,92683.0,0.341]
[1745423645633,0.00377654,92692.0,92683.0,0.341]
[1745423645839,0.10689014,92691.0,92683.0,0.341]
[1745423646243,0.10689014,92691.0,92685.0,0.34]
[1745423647409,0.37166764,92690.0,92685.0,0.34]
[1745423647627,0.10689014,92689.0,92685.0,0.34]
[1745423647754,0.37166764,92690.0,92685.0,0.34]
[1745423647755,0.37166764,92690.0,92686.0,0.01454085]
[1745423647958,0.37166764,92690.0,92685.0,0.34]
[1745423647959,0.37166764,92690.0,92687.0,0.048]
[1745423648616,0.37166764,92701.0,92688.0,0.02329046]
[1745423648791,0.10689014,92700.0,92691.0,0.01454085]
[1745423648972,0.10689014,92700.0,92692.0,0.00874961]
[1745423649575,0.10689014,92700.0,92693.0,0.00874961]
[1745423650252,0.37166764,92701.0,92695.0,0.01454085]
[1745423650998,0.001,92700.0,92697.0,0.01454085]
[1745423651409,0.37166764,92701.0,92698.0,0.00874961]
[1745423651725,0.37366764,92701.0,92698.0,0.00874961]
[1745423651968,0.37366764,92701.0,92692.0,0.01454085]
[1745423653404,0.37366764,92701.0,92698.0,0.01454085]
[1745423653643,0.002,92701.0,92698.0,0.01454085]
[1745423653893,0.37166764,92725.0,92700.0,0.01454085]
[1745423654096,0.00377548,92724.0,92700.0,0.01454085]
[1745423654307,0.002,92701.0,92700.0,0.01454085]
[1745423654511,0.002,92701.0,92700.0,0.02329227]
[1745423655004,0.37166764,92725.0,92701.0,0.06234085]
[1745423655252,0.0014247,92702.0,92701.0,0.06234085]
[1745423655467,0.0014247,92702.0,92701.0,0.07109227]
[1745423655910,0.0014247,92702.0,92701.0,0.06234085]
[1745423656381,0.0014247,92702.0,92701.0,0.52506085]
[1745423657226,0.0004247,92702.0,92701.0,0.52506085]
[1745423658172,0.0004247,92702.0,92701.0,0.52606085]
[1745423658629,0.0014247,92702.0,92701.0,0.52606085]
[1745423662132,0.0004244,92726.0,92702.0,0.35454085]
[1745423662355,0.0004244,92726.0,92708.0,0.39974085]
[1745423662585,0.0004244,92726.0,92708.0,0.50726885]
[1745423662808,0.0004244,92726.0,92708.0,0.61547196]
[1745423664245,0.0004244,92726.0,92708.0,0.61847196]
[1745423664745,0.0004244,92726.0,92708.0,0.52546085]
[1745423664956,0.00419931,92726.0,92708.0,0.18546085]
[1745423665462,0.00419931,92726.0,92708.0,0.18542085]
[1745423665677,0.0004244,92726.0,92708.0,0.18542085]
[1745423666545,0.0004244,92726.0,92708.0,0.74115196]
[1745423666990,0.0004244,92726.0,92708.0,1.18275996]
[1745423667206,0.0004244,92726.0,92708.0,1.1797621]
[1745423667423,0.0004244,92726.0,92708.0,1.2098001]
[1745423667859,0.0004244,92726.0,92708.0,1.2068001]
[1745423668074,0.0004244,92726.0,92708.0,1.2038001]
[1745423668286,0.0004244,92726.0,92708.0,1.2078001]
[1745423668716,0.0004244,92726.0,92708.0,0.8968421]
[1745423669154,0.0004244,92726.0,92708.0,1.1833081]
[1745423669380,0.0004244,92726.0,92708.0,1.1577601]
[1745423670242,0.0004244,92726.0,92725.0,0.55569156]
[1745423670468,0.0004244,92726.0,92725.0,0.61583241]
[1745423670705,0.0004244,92726.0,92725.0,0.40888391]
[1745423671606,0.0004244,92726.0,92725.0,0.40514085]
[1745423672023,0.00125797,92729.0,92726.0,0.35454085]
[1745423672220,0.00125797,92729.0,92728.0,0.61672543]
[1745423672422,0.00125797,92729.0,92728.0,1.75142357]
[1745423672695,0.0004248,92738.0,92730.0,0.57022078]
[1745423672914,0.0004248,92738.0,92730.0,0.7523326]
[1745423673127,0.0004248,92738.0,92730.0,1.7660756]
[1745423673346,0.0004248,92738.0,92730.0,1.17422458]
[1745423673567,0.0004248,92738.0,92730.0,1.1455029]
[1745423673792,0.0004248,92738.0,92730.0,1.13677192]
[1745423674029,0.0004248,92738.0,92730.0,1.11823192]
[1745423674661,0.0004248,92738.0,92730.0,1.12695768]
[1745423675348,0.0004248,92738.0,92730.0,1.06694568]
[1745423675588,0.0004248,92738.0,92730.0,1.07094568]
[1745423675810,0.0004248,92738.0,92736.0,0.61870682]
[1745423676024,0.0004248,92738.0,92736.0,1.48264996]
[1745423676246,0.0004248,92738.0,92736.0,1.14884796]
[1745423676716,0.0004248,92738.0,92736.0,1.19504796]
[1745423676996,0.002,92749.0,92740.0,0.40004085]
[1745423677224,0.002,92749.0,92742.0,0.35454085]
[1745423677457,0.002,92789.0,92754.0,0.0107812]
[1745423677684,0.002,92789.0,92756.0,0.61546032]
[1745423677904,0.002,92789.0,92768.0,0.34]
[1745423678130,0.002,92789.0,92768.0,1.31559557]
[1745423678360,0.002,92789.0,92768.0,0.84460257]
[1745423679032,0.002,92789.0,92768.0,0.52212085]
[1745423679481,0.002,92789.0,92768.0,0.52312085]
[1745423679730,0.0004244,92775.0,92768.0,0.06084085]
[1745423679965,0.0004244,92775.0,92768.0,0.01554085]
[1745423680930,0.11373319,92769.0,92768.0,0.001]
[1745423681139,0.11373319,92769.0,92768.0,0.00870889]
[1745423681140,0.10996014,92769.0,92768.0,0.00870889]
[1745423681598,0.10996014,92769.0,92768.0,0.00970889]
[1745423681822,0.10996014,92769.0,92768.0,0.00870889]
[1745423682506,0.10896014,92769.0,92768.0,0.00870889]
[1745423682946,0.10996014,92769.0,92768.0,0.00870889]
[1745423683160,0.11296014,92769.0,92768.0,0.00870889]
[1745423683350,0.11396014,92769.0,92768.0,0.00870889]
[1745423684434,0.49812311,92769.0,92768.0,0.00870889]
[1745423684668,0.48562778,92769.0,92768.0,0.00870889]
[1745423685323,0.48262778,92769.0,92768.0,0.00870889]
[1745423685533,0.48562778,92769.0,92768.0,0.00870889]
[1745423685764,0.48862778,92769.0,92768.0,0.00870889]
[1745423687192,0.38173764,92769.0,92768.0,0.00870889]
[1745423687642,0.48862778,92769.0,92768.0,0.00870889]
[1745423688310,0.007,92769.0,92768.0,0.00870889]
[1745423688559,0.007,92769.0,92768.0,0.00970889]
[1745423688781,0.007,92769.0,92761.0,0.01454085]
[1745423689225,0.007,92769.0,92760.0,0.01454085]
[1745423689650,0.003,92769.0,92760.0,0.01454085]
[1745423691460,0.0004244,92775.0,92763.0,0.35454085]
[1745423691954,0.0004244,92775.0,92771.0,0.35454085]
[1745423692224,0.00451855,92772.0,92771.0,0.35454085]
[1745423692446,0.00451855,92772.0,92771.0,1.32371699]
[1745423692674,0.00451855,92772.0,92771.0,1.29547299]
[1745423692898,0.00451855,92772.0,92771.0,1.27469999]
[1745423693237,0.00651855,92772.0,92771.0,1.27469999]
[1745423693670,0.00651855,92772.0,92771.0,0.85101099]
[1745423693892,0.00651855,92772.0,92771.0,0.69318999]
[1745423695227,0.00651855,92772.0,92771.0,0.62763299]
[1745423695471,0.00451855,92772.0,92771.0,0.50983099]
[1745423695682,0.00451855,92772.0,92771.0,0.63529099]
[1745423696378,0.00451855,92772.0,92771.0,0.51283099]
[1745423696609,0.00451855,92772.0,92771.0,0.0514]
[1745423697460,0.00451855,92772.0,92771.0,0.06594085]
[1745423699581,0.00451855,92772.0,92771.0,0.0514]
[1745423699826,0.00451855,92772.0,92771.0,0.003]
[1745423700057,0.00878634,92772.0,92771.0,0.003]
[1745423700677,0.00878634,92772.0,92771.0,0.001]
[1745423700678,0.00978634,92772.0,92771.0,0.001]
[1745423700916,0.48709514,92772.0,92771.0,0.001]
[1745423701139,0.48809514,92772.0,92771.0,0.00940394]
[1745423702438,0.48809514,92772.0,92771.0,0.00840394]
[1745423703266,0.49109514,92772.0,92771.0,0.00840394]
[1745423703707,0.49009514,92772.0,92771.0,0.00840394]
[1745423703932,0.54224709,92772.0,92771.0,0.00840394]
[1745423704148,0.49309514,92772.0,92771.0,0.00840394]
[1745423706150,0.49009514,92772.0,92771.0,0.00840394]
[1745423706368,0.48709514,92772.0,92771.0,0.00840394]
[1745423706577,0.49109514,92772.0,92771.0,0.00840394]
[1745423706699,0.49509514,92772.0,92771.0,0.00840394]
[1745423707538,0.54464709,92772.0,92771.0,0.00840394]
[1745423707947,0.59354709,92772.0,92771.0,0.00840394]
[1745423708569,0.59454709,92772.0,92771.0,0.00840394]
[1745423708799,0.36201472,92770.0,92763.0,0.001]
[1745423708950,0.10689014,92764.0,92763.0,0.001]
[1745423709355,0.11094489,92764.0,92763.0,0.001]
[1745423710205,0.11294489,92764.0,92763.0,0.001]
[1745423711479,0.11394489,92764.0,92763.0,0.001]
[1745423712075,0.16046958,92764.0,92763.0,0.001]
[1745423712291,0.47595961,92764.0,92763.0,0.001]
[1745423712930,0.47190486,92764.0,92763.0,0.001]
[1745423715925,0.36501472,92764.0,92763.0,0.001]
[1745423716158,0.003,92764.0,92763.0,0.001]
[1745423716955,0.001,92764.0,92763.0,0.001]
[1745423717161,0.00551855,92772.0,92763.0,0.001]
[1745423717581,0.00551855,92772.0,92763.0,0.341]
[1745423718858,0.04231432,92772.0,92763.0,0.341]
[1745423719100,0.00551855,92772.0,92763.0,0.001]
[1745423719310,0.00551855,92772.0,92763.0,0.341]
[1745423719814,0.10689014,92771.0,92763.0,0.341]
[1745423720045,0.11240869,92772.0,92763.0,0.341]
[1745423720249,0.00551855,92772.0,92763.0,0.341]
[1745423720450,0.00551855,92772.0,92763.0,0.001]
[1745423721037,0.10689014,92771.0,92763.0,0.001]
[1745423721471,0.00551855,92772.0,92764.0,0.00812277]
[1745423721694,0.10689014,92770.0,92764.0,0.00812277]
[1745423722141,0.10689014,92770.0,92765.0,0.00812277]
[1745423722578,0.00377336,92769.0,92766.0,0.00812277]
[1745423722784,0.10689014,92768.0,92766.0,0.00812277]
[1745423723031,0.10689014,92768.0,92763.0,0.001]
[1745423723032,0.00377364,92767.0,92763.0,0.001]
[1745423723276,0.10689014,92766.0,92763.0,0.001]
[1745423723482,0.10689014,92764.0,92737.0,0.0467]
[1745423723694,0.00377423,92763.0,92737.0,0.0467]
[1745423723917,0.10689014,92762.0,92737.0,0.3867]
[1745423724123,0.10689014,92762.0,92751.0,0.34]
[1745423725407,0.10789014,92762.0,92751.0,0.34]
[1745423726518,0.36201472,92761.0,92751.0,0.34]
[1745423727452,0.36201472,92761.0,92752.0,0.0481]
[1745423727680,0.36201472,92761.0,92758.0,0.01454085]
[1745423727894,0.36201472,92761.0,92760.0,0.35454085]
[1745423728116,0.001,92768.0,92760.0,0.35454085]
[1745423729440,0.001,92768.0,92759.0,0.12184]
[1745423729441,0.10689014,92767.0,92759.0,0.12184]
[1745423729657,0.02712517,92766.0,92759.0,0.12184]
[1745423729865,0.02712517,92766.0,92760.0,0.34]
[1745423730518,0.10689014,92767.0,92760.0,0.34]
[1745423730729,0.00377331,92766.0,92760.0,0.34]
[1745423730933,0.10689014,92767.0,92760.0,0.34]
[1745423730934,0.46890486,92765.0,92760.0,0.34]
[1745423732449,0.47090486,92765.0,92760.0,0.34]
[1745423732655,0.47090486,92765.0,92751.0,0.34]
[1745423732855,0.36401472,92765.0,92752.0,0.01454085]
[1745423734458,0.36201472,92765.0,92754.0,0.01454085]
[1745423734665,0.36401472,92765.0,92754.0,0.01454085]
[1745423735268,0.36201472,92765.0,92754.0,0.01454085]
[1745423735705,0.36201472,92765.0,92754.0,0.01554085]
[1745423735905,0.36201472,92765.0,92756.0,0.01454085]
[1745423736516,0.36201472,92765.0,92758.0,0.01454085]
[1745423736694,0.001,92767.0,92757.0,0.00763748]
[1745423736695,0.001,92767.0,92762.0,0.35454085]
[1745423736899,0.001,92767.0,92766.0,0.57013708]
[1745423737122,0.001,92767.0,92766.0,0.64891454]
[1745423737326,0.001,92767.0,92766.0,0.62767456]
[1745423737528,0.001,92767.0,92766.0,0.65653725]
[1745423738367,0.00451855,92772.0,92771.0,0.61822546]
[1745423738568,0.00451855,92772.0,92771.0,0.74734294]
[1745423739428,0.00451855,92772.0,92771.0,0.85423308]
[1745423739633,0.00259095,92792.0,92774.0,0.57011849]
[1745423739837,0.00259095,92792.0,92774.0,2.02590623]
[1745423740037,0.00259095,92792.0,92774.0,1.68557123]
[1745423740312,0.00259095,92792.0,92774.0,0.65560609]
[1745423740435,0.00259095,92792.0,92774.0,0.53265833]
[1745423740635,0.00259095,92792.0,92774.0,0.74823597]
[1745423741293,0.00259095,92792.0,92774.0,0.85512611]
[1745423741523,0.00259095,92792.0,92774.0,1.85396011]
[1745423741737,0.00259095,92792.0,92774.0,1.74221111]
[1745423741940,0.00259095,92792.0,92774.0,1.74321111]
[1745423742150,0.00259095,92792.0,92774.0,1.72082211]
[1745423742724,0.00259095,92792.0,92774.0,1.29004611]
[1745423743293,0.00259095,92792.0,92774.0,0.85812611]
[1745423743664,0.00259095,92792.0,92774.0,1.29859411]
[1745423743871,0.00259095,92792.0,92774.0,1.24205611]
[1745423744105,0.00259095,92792.0,92787.0,0.35454085]
[1745423744315,0.00259095,92792.0,92788.0,0.57008596]
[1745423744537,0.00259095,92792.0,92788.0,0.36217833]
[1745423745152,0.00259095,92792.0,92788.0,0.48365833]
[1745423745340,0.00259095,92792.0,92788.0,0.69920344]
[1745423745576,0.00259095,92792.0,92788.0,0.48365833]
[1745423746152,0.004,92789.0,92788.0,0.48365833]
[1745423746350,0.004,92789.0,92788.0,0.4836498]
[1745423747772,0.005,92789.0,92788.0,0.4836498]
[1745423748613,0.005,92789.0,92788.0,0.12910895]
[1745423748813,0.00877218,92789.0,92788.0,0.00762895]
[1745423749027,0.00877218,92789.0,92785.0,0.12144]
[1745423749028,0.00677225,92789.0,92785.0,0.12144]
[1745423749242,0.003,92789.0,92785.0,0.12144]
[1745423749380,0.003,92789.0,92788.0,0.002]
[1745423749962,0.002,92789.0,92788.0,0.002]
[1745423751017,0.002,92789.0,92786.0,0.34]
[1745423751473,0.003,92789.0,92786.0,0.34]
[1745423751716,0.003,92789.0,92788.0,0.001]
[1745423751936,0.002,92789.0,92788.0,0.00862954]
[1745423752189,0.002,92789.0,92788.0,0.2851155]
[1745423752407,0.003,92789.0,92788.0,0.2851155]
[1745423752626,0.004,92789.0,92788.0,0.2851155]
[1745423752846,0.003,92789.0,92788.0,0.2851155]
[1745423753081,0.002,92789.0,92788.0,0.05502954]
[1745423753288,0.003,92789.0,92788.0,0.06957039]
[1745423754660,0.004,92789.0,92788.0,0.40957039]
[1745423755269,0.004,92789.0,92788.0,0.51646053]
[1745423755524,0.004,92789.0,92788.0,0.63790053]
[1745423755700,0.004,92789.0,92788.0,0.53101039]
[1745423756597,0.004,92789.0,92788.0,0.14361039]
[1745423756848,0.004,92789.0,92788.0,0.00762954]
[1745423757025,0.003,92789.0,92788.0,0.12906954]
[1745423757293,0.003,92789.0,92788.0,0.14361039]
[1745423757498,0.003,92789.0,92788.0,0.14461039]
[1745423758310,0.003,92789.0,92788.0,0.13006954]
[1745423758311,0.002,92789.0,92788.0,0.13006954]
[1745423758757,0.36201472,92809.0,92789.0,0.35454085]
[1745423758989,0.0463,92819.0,92788.0,0.14194415]
[1745423758990,0.0004243,92830.0,92810.0,0.01454085]
[1745423759205,0.0004243,92830.0,92818.0,0.35454085]
[1745423759411,0.10731444,92827.0,92818.0,0.35454085]
[1745423759622,0.10731444,92827.0,92818.0,0.34]
[1745423760242,0.10731444,92827.0,92819.0,0.01454085]
[1745423760243,0.0004243,92827.0,92819.0,0.01454085]
[1745423760646,0.0004243,92827.0,92825.0,0.01454085]
[1745423760860,0.0034243,92827.0,92825.0,0.01454085]
[1745423761061,0.0034243,92827.0,92824.0,0.01454085]
[1745423761270,0.0034243,92827.0,92826.0,0.06054085]
[1745423761681,0.0064243,92827.0,92826.0,0.06054085]
[1745423761884,0.0064243,92827.0,92826.0,0.45496292]
[1745423762309,0.0004243,92827.0,92826.0,0.56185306]
[1745423762513,0.0004243,92827.0,92826.0,0.80803106]
[1745423762715,0.0064243,92827.0,92826.0,0.77865206]
[1745423763147,0.0034243,92827.0,92826.0,0.77865206]
[1745423763298,0.0004243,92830.0,92828.0,0.01454085]
[1745423763505,0.0004243,92830.0,92828.0,0.51795306]
[1745423763706,0.0144412,92865.0,92848.0,0.61884667]
[1745423763930,0.0144412,92865.0,92848.0,0.73992667]
[1745423765459,0.0144412,92865.0,92848.0,0.74752486]
[1745423765661,0.0144412,92865.0,92848.0,0.53211904]
[1745423765662,0.00376923,92864.0,92848.0,0.53211904]
[1745423765861,0.00376923,92864.0,92848.0,0.74752486]
[1745423766058,0.0144412,92865.0,92848.0,0.74752486]
[1745423766263,0.003,92849.0,92848.0,0.74752486]
[1745423766562,0.003,92849.0,92848.0,0.53211904]
[1745423766727,0.003,92849.0,92848.0,0.48321904]
[1745423766927,0.005,92849.0,92848.0,0.47562085]
[1745423767361,0.29268265,92878.0,92868.0,0.56990028]
[1745423767552,0.0004242,92882.0,92868.0,0.67679042]
[1745423768093,0.0004242,92882.0,92868.0,1.44458642]
[1745423768309,0.0004242,92882.0,92881.0,0.56987014]
[1745423768509,0.0004242,92882.0,92881.0,0.47562085]
[1745423769141,0.0004242,92882.0,92881.0,0.46108]
[1745423769344,0.0004242,92882.0,92881.0,0.47562085]
[1745423769898,0.0024242,92882.0,92881.0,0.47562085]
[1745423770316,0.0044242,92882.0,92881.0,0.47562085]
[1745423770534,0.0044242,92882.0,92881.0,1.07274585]
[1745423770762,0.0044242,92882.0,92881.0,0.74502285]
[1745423770972,0.0044242,92882.0,92881.0,0.67888085]
[1745423771188,0.0044242,92882.0,92881.0,0.56602085]
[1745423772021,0.0044242,92882.0,92881.0,0.67291099]
[1745423772232,0.0024242,92882.0,92881.0,0.55283099]
[1745423772460,0.0024242,92882.0,92881.0,1.53408599]
[1745423772673,0.0004242,92882.0,92881.0,1.53408599]
[1745423774039,0.0004242,92882.0,92881.0,1.08261499]
[1745423774706,0.0004242,92882.0,92881.0,0.96157499]
[1745423774919,0.35454085,92974.0,92949.0,0.0145258]
[1745423775149,0.10689014,92950.0,92949.0,0.0145258]
[1745423775587,0.014017,92958.0,92957.0,0.22969409]
[1745423775841,0.014017,92958.0,92957.0,0.01454085]
[1745423776272,0.014017,92958.0,92957.0,0.001]
[1745423776476,0.014017,92958.0,92957.0,0.01454085]
[1745423776678,0.014017,92958.0,92957.0,0.47554085]
[1745423776887,0.014017,92958.0,92957.0,0.461]
[1745423777111,0.12290714,92958.0,92957.0,0.34]
[1745423777759,0.12290714,92958.0,92949.0,0.0145258]
[1745423777971,0.10689014,92950.0,92949.0,0.0145258]
[1745423778418,0.11065671,92950.0,92949.0,0.0145258]
[1745423778834,0.017017,92958.0,92951.0,0.01075835]
[1745423779037,0.017017,92958.0,92952.0,0.01454085]
[1745423779246,0.016017,92958.0,92952.0,0.01454085]
[1745423779694,0.018017,92958.0,92957.0,0.21515324]
[1745423779904,0.018017,92958.0,92957.0,0.34]
[1745423780140,0.018017,92958.0,92957.0,0.3396]
[1745423780567,0.015017,92958.0,92957.0,0.3396]
[1745423780772,0.019017,92958.0,92957.0,0.33280661]
[1745423780977,0.019017,92958.0,92953.0,0.2151625]
[1745423781186,0.015017,92958.0,92953.0,0.2151625]
[1745423781602,0.015017,92958.0,92953.0,0.01454085]
[1745423781815,0.015017,92958.0,92956.0,0.21515439]
[1745423782274,0.021017,92958.0,92957.0,0.01454085]
[1745423782481,0.0064912,92958.0,92957.0,0.01454085]
[1745423782698,0.0064912,92958.0,92957.0,0.35454085]
[1745423782913,0.10738134,92958.0,92957.0,0.34]
[1745423783123,0.11238134,92958.0,92957.0,0.34]
[1745423783335,0.11838134,92958.0,92957.0,0.34]
[1745423783549,0.11338134,92958.0,92957.0,0.34]
[1745423783755,0.11038134,92958.0,92956.0,0.0005088]
[1745423783990,0.11065595,92957.0,92956.0,0.0005088]
[1745423784408,0.0074912,92958.0,92957.0,0.39974085]
[1745423784617,0.0044912,92958.0,92957.0,0.48653369]
[1745423784824,0.0044912,92958.0,92957.0,0.47199284]
[1745423785028,0.0074912,92958.0,92957.0,0.34]
[1745423785595,0.0034912,92958.0,92957.0,0.34]
[1745423785802,0.11038134,92958.0,92956.0,0.0005088]
[1745423786002,0.10689014,92957.0,92956.0,0.0005088]
[1745423786495,0.0034912,92958.0,92956.0,0.0005088]
[1745423786698,0.0004912,92958.0,92957.0,0.10133369]
[1745423786828,0.0044912,92958.0,92957.0,0.48983369]
[1745423787030,0.0074912,92958.0,92957.0,0.48983369]
[1745423787226,0.0044912,92958.0,92957.0,0.48983369]
[1745423787444,0.0004912,92958.0,92957.0,0.48983369]
[1745423788257,0.0024912,92958.0,92957.0,0.48983369]
[1745423789302,0.0064912,92958.0,92957.0,0.48983369]
[1745423789916,0.0024912,92958.0,92957.0,0.48983369]
[1745423790107,0.0044912,92958.0,92957.0,0.48983369]
[1745423790320,0.0044912,92958.0,92957.0,0.35554085]
[1745423790529,0.0044912,92958.0,92956.0,0.21566374]
[1745423790740,0.0044912,92958.0,92956.0,0.30245658]
[1745423790953,0.004,92958.0,92956.0,0.30245658]
[1745423791649,0.002,92958.0,92956.0,0.30245658]
[1745423792090,0.004,92958.0,92956.0,0.30245658]
[1745423792295,0.004,92958.0,92956.0,0.21566374]
[1745423792535,0.004,92958.0,92957.0,0.34]
[1745423792765,0.002,92958.0,92956.0,0.21566374]
[1745423792992,0.10689014,92957.0,92956.0,0.21566374]
[1745423794592,0.10689014,92957.0,92956.0,0.22320482]
[1745423794807,0.002,92957.0,92956.0,0.22320482]
[1745423795498,0.10889014,92957.0,92956.0,0.22320482]
[1745423795926,0.10889014,92957.0,92956.0,0.00804988]
[1745423796133,0.002,92957.0,92956.0,0.42730164]
[1745423796566,0.002,92957.0,92956.0,0.54790164]
[1745423797379,0.004,92957.0,92956.0,0.54790164]
[1745423798772,0.004,92957.0,92956.0,0.54786164]
[1745423799164,0.004,92957.0,92956.0,0.4610688]
[1745423799753,0.11089014,92957.0,92956.0,0.0005088]
[1745423800107,0.11189014,92957.0,92956.0,0.0005088]
[1745423800853,0.11189014,92957.0,92956.0,0.08730164]
[1745423801491,0.11189014,92957.0,92956.0,0.0005088]
[1745423802402,0.10989014,92957.0,92955.0,0.21515578]
[1745423802623,0.10689014,92956.0,92955.0,0.21515578]
[1745423803832,0.003,92957.0,92955.0,0.30245742]
[1745423804046,0.003,92957.0,92956.0,0.34]
[1745423804279,0.004,92957.0,92956.0,0.34]
[1745423804505,0.002,92957.0,92956.0,0.34]
[1745423804729,0.002,92957.0,92956.0,0.3867]
[1745423805170,0.001,92957.0,92956.0,0.3867]
[1745423805616,0.002,92969.0,92956.0,0.3867]
[1745423805617,0.0004912,92969.0,92968.0,0.55512778]
[1745423805834,0.0004912,92969.0,92968.0,0.80649978]
[1745423806057,0.0004912,92969.0,92968.0,0.67568778]
[1745423807237,0.0013838,92973.0,92968.0,0.56189369]
[1745423807456,1e-08,92975.0,92974.0,0.56965475]
[1745423807669,1e-08,92975.0,92974.0,0.79975575]
[1745423807899,1e-08,92975.0,92974.0,0.69021475]
[1745423808129,1e-08,92975.0,92974.0,0.73771475]
[1745423808358,0.00576368,93029.0,93008.0,0.60253526]
[1745423808586,0.002,93029.0,93008.0,0.72309526]
[1745423809417,0.002,93029.0,93019.0,0.21500983]
[1745423809615,0.002,93029.0,93019.0,0.55500983]
[1745423811773,0.10696014,93020.0,93019.0,0.55500983]
[1745423812234,0.11096014,93020.0,93019.0,0.55500983]
[1745423812452,0.11196014,93020.0,93019.0,0.55500983]
[1745423812911,0.11196014,93020.0,93018.0,0.21501062]
[1745423813135,0.10689014,93019.0,93007.0,0.21503657]
[1745423813353,0.00507,93020.0,92992.0,0.12052]
[1745423813354,0.10689014,93014.0,92992.0,0.12052]
[1745423813578,0.10689014,93011.0,92992.0,0.12052]
[1745423813797,0.10689014,93009.0,93000.0,0.21505174]
[1745423814015,0.10689014,93009.0,93002.0,0.21504913]
[1745423814276,0.00590793,93008.0,93001.0,0.21505051]
[1745423814465,0.10689014,93007.0,93001.0,0.21504923]
[1745423814689,0.11279807,93007.0,93001.0,0.21504923]
[1745423814902,0.11279807,93007.0,93000.0,0.21505216]
[1745423815352,0.01068901,93009.0,92981.0,0.34]
[1745423815353,0.10689014,93005.0,92981.0,0.34]
[1745423815578,0.10689014,93005.0,92980.0,0.56663942]
[1745423815579,0.01589856,93004.0,92995.0,0.34]
[1745423815807,0.10689014,93003.0,92995.0,0.34]
[1745423816039,0.10689014,92996.0,92981.0,0.2150977]
[1745423816258,0.00376444,92995.0,92981.0,0.2150977]
[1745423816477,0.10689014,92994.0,92983.0,0.21509146]
[1745423816707,0.10689014,92994.0,92973.0,0.01075581]
[1745423816969,0.00955356,92993.0,92989.0,0.21507835]
[1745423817188,0.10689014,92992.0,92989.0,0.21507835]
[1745423817399,0.10689014,92992.0,92987.0,0.21508329]
[1745423817612,0.00578457,92991.0,92984.0,0.21509054]
[1745423817858,0.10689014,92990.0,92985.0,0.21508704]
[1745423818299,0.10689014,92990.0,92984.0,0.21509054]
[1745423818485,0.10689014,92990.0,92982.0,0.21509403]
[1745423818486,0.10689014,92990.0,92985.0,0.21508663]
[1745423819108,0.10689014,92990.0,92983.0,0.21509185]
[1745423819552,0.10689014,92990.0,92982.0,0.21509477]